Workbook

Sheet énoncé
A1: 1) complétez la feuille permettant le calcul des indemnités à verser sur le mois
A2: 2) élaborer la macro permettant d'archiver les indemnités par mois et par an
A3: 3) écrire la fonction Ikv(typev, cv, km) qui renvoie l'indemnité à payer au salarié
A4: 4) écrire la fonction qui affiche l'indemnité après saisie des éléments
A5: 5) élaborer les récapitulatifs nécessaires
A7: NB :
B8: la feuille km parcourus est saisie
B9: les barèmes applicables changent chaque année
C10: => il faut concevoir une table gérant ces barèmes dans le temps

Sheet km parcourus
A1: salariés | B1: Kilomètrages parcouru mars
A2: salarié 1 | B2: 480
A3: salarié 2 | B3: 815
A4: salarié 3 | B4: 135
A5: salarié 4 | B5: 94
A6: salarié 5 | B6: 392
A7: salarié 6 | B7: 610
A8: salarié 7 | B8: 423
A9: salarié 8 | B9: 90
A10: salarié 9 | B10: 721
A11: salarié 10 | B11: 426
A12: salarié 11 | B12: 222
A13: salarié 12 | B13: 212
A14: salarié 13 | B14: 455
A15: salarié 14 | B15: 1021
A16: salarié 15 | B16: 789
A17: salarié 16 | B17: 144
A18: salarié 17 | B18: 604
A19: salarié 18 | B19: 22
A20: salarié 19 | B20: 1010
A21: salarié 20 | B21: 14
A22: salarié 21 | B22: 473
A23: salarié 22 | B23: 686
A24: salarié 23 | B24: 608
A25: salarié 24 | B25: 161
A26: salarié 25 | B26: 471
A27: salarié 26 | B27: 72
A28: salarié 27 | B28: 542
A29: salarié 28 | B29: 345
A30: salarié 29 | B30: 553
A31: salarié 30 | B31: 869

Sheet indemnités
A1: Date | B1: 2021-03-28 | H1: Function Ikv(CV As Integer, TypeV As String, Nbkm As Single, Bareme As Range)
A2: Année | B2: =YEAR(B1) -> 2021 | C2: Mois | D2: =MONTH(B1) -> 3 | H2: ' pour simplifier et se concentrer sur les conditions
A3: salariés | B3: nombre de cv | C3: Type véhicule | D3: Kilomètrages parcouru mars | E3: indemnités km | F3: avec la fonction ikv | H3: ' il est préférable de déclarer la table bareme dans la fonction
A4: salarié 1 | B4: =VLOOKUP(Tableau25[[#This Row],[salariés]],Tableau1[],2,0) -> 3 | C4: =VLOOKUP(Tableau25[[#This Row],[salariés]],Tableau1[],3,0) -> Essence | D4: =VLOOKUP(Tableau25[[#This Row],[salariés]],Tableau2[],2,0) -> 480 | E4: =ROUND(IF(Tableau25[[#This Row],[Type véhicule]]="électrique",1.2,1)*IF(Tableau25[[#This Row],[Kilomètrages parcouru mars]]<=5000,VLOOKUP(Tableau25[[#This Row],[nombre de cv]],Tableau3[],2)*Tableau25[[#This Row],[Kilomètrages parcouru mars]],IF(Tableau25[[#This Row],[Kilomètrages parcouru mars]]<=20000,VLOOKUP(Tableau25[[#This Row],[nombre de cv]],Tableau3[],3)*Tableau25[[#This Row],[Kilomètrages parcouru mars]]+VLOOKUP(Tableau25[[#This Row],[nombre de cv]],Tableau3[],4),VLOOKUP(Tableau25[[#This Row],[nombre de cv]],Tableau3[],5)*Tableau25[[#This Row],[Kilomètrages parcouru mars]])),2) -> 218.88 | F4: =ikv(Tableau25[[#This Row],[nombre de cv]],Tableau25[[#This Row],[Type véhicule]],Tableau25[[#This Row],[Kilomètrages parcouru mars]],Tableau3[]) -> 218.88 | H4: ' cela permet aussi d'éviter d'avoir à déclarer l année
A5: salarié 2 | B5: =VLOOKUP(Tableau25[[#This Row],[salariés]],Tableau1[],2,0) -> 5 | C5: =VLOOKUP(Tableau25[[#This Row],[salariés]],Tableau1[],3,0) -> électrique | D5: =VLOOKUP(Tableau25[[#This Row],[salariés]],Tableau2[],2,0) -> 815 | E5: =ROUND(IF(Tableau25[[#This Row],[Type véhicule]]="électrique",1.2,1)*IF(Tableau25[[#This Row],[Kilomètrages parcouru mars]]<=5000,VLOOKUP(Tableau25[[#This Row],[nombre de cv]],Tableau3[],2)*Tableau25[[#This Row],[Kilomètrages parcouru mars]],IF(Tableau25[[#This Row],[Kilomètrages parcouru mars]]<=20000,VLOOKUP(Tableau25[[#This Row],[nombre de cv]],Tableau3[],3)*Tableau25[[#This Row],[Kilomètrages parcouru mars]]+VLOOKUP(Tableau25[[#This Row],[nombre de cv]],Tableau3[],4),VLOOKUP(Tableau25[[#This Row],[nombre de cv]],Tableau3[],5)*Tableau25[[#This Row],[Kilomètrages parcouru mars]])),2) -> 535.94 | F5: =ikv(Tableau25[[#This Row],[nombre de cv]],Tableau25[[#This Row],[Type véhicule]],Tableau25[[#This Row],[Kilomètrages parcouru mars]],Tableau3[]) -> 535.94
A6: salarié 3 | B6: =VLOOKUP(Tableau25[[#This Row],[salariés]],Tableau1[],2,0) -> 4 | C6: =VLOOKUP(Tableau25[[#This Row],[salariés]],Tableau1[],3,0) -> Essence | D6: =VLOOKUP(Tableau25[[#This Row],[salariés]],Tableau2[],2,0) -> 135 | E6: =ROUND(IF(Tableau25[[#This Row],[Type véhicule]]="électrique",1.2,1)*IF(Tableau25[[#This Row],[Kilomètrages parcouru mars]]<=5000,VLOOKUP(Tableau25[[#This Row],[nombre de cv]],Tableau3[],2)*Tableau25[[#This Row],[Kilomètrages parcouru mars]],IF(Tableau25[[#This Row],[Kilomètrages parcouru mars]]<=20000,VLOOKUP(Tableau25[[#This Row],[nombre de cv]],Tableau3[],3)*Tableau25[[#This Row],[Kilomètrages parcouru mars]]+VLOOKUP(Tableau25[[#This Row],[nombre de cv]],Tableau3[],4),VLOOKUP(Tableau25[[#This Row],[nombre de cv]],Tableau3[],5)*Tableau25[[#This Row],[Kilomètrages parcouru mars]])),2) -> 70.61 | F6: =ikv(Tableau25[[#This Row],[nombre de cv]],Tableau25[[#This Row],[Type véhicule]],Tableau25[[#This Row],[Kilomètrages parcouru mars]],Tableau3[]) -> 70.6
A7: salarié 4 | B7: =VLOOKUP(Tableau25[[#This Row],[salariés]],Tableau1[],2,0) -> 6 | C7: =VLOOKUP(Tableau25[[#This Row],[salariés]],Tableau1[],3,0) -> Essence | D7: =VLOOKUP(Tableau25[[#This Row],[salariés]],Tableau2[],2,0) -> 94 | E7: =ROUND(IF(Tableau25[[#This Row],[Type véhicule]]="électrique",1.2,1)*IF(Tableau25[[#This Row],[Kilomètrages parcouru mars]]<=5000,VLOOKUP(Tableau25[[#This Row],[nombre de cv]],Tableau3[],2)*Tableau25[[#This Row],[Kilomètrages parcouru mars]],IF(Tableau25[[#This Row],[Kilomètrages parcouru mars]]<=20000,VLOOKUP(Tableau25[[#This Row],[nombre de cv]],Tableau3[],3)*Tableau25[[#This Row],[Kilomètrages parcouru mars]]+VLOOKUP(Tableau25[[#This Row],[nombre de cv]],Tableau3[],4),VLOOKUP(Tableau25[[#This Row],[nombre de cv]],Tableau3[],5)*Tableau25[[#This Row],[Kilomètrages parcouru mars]])),2) -> 53.96 | F7: =ikv(Tableau25[[#This Row],[nombre de cv]],Tableau25[[#This Row],[Type véhicule]],Tableau25[[#This Row],[Kilomètrages parcouru mars]],Tableau3[]) -> 53.96
A8: salarié 5 | B8: =VLOOKUP(Tableau25[[#This Row],[salariés]],Tableau1[],2,0) -> 8 | C8: =VLOOKUP(Tableau25[[#This Row],[salariés]],Tableau1[],3,0) -> diesel | D8: =VLOOKUP(Tableau25[[#This Row],[salariés]],Tableau2[],2,0) -> 392 | E8: =ROUND(IF(Tableau25[[#This Row],[Type véhicule]]="électrique",1.2,1)*IF(Tableau25[[#This Row],[Kilomètrages parcouru mars]]<=5000,VLOOKUP(Tableau25[[#This Row],[nombre de cv]],Tableau3[],2)*Tableau25[[#This Row],[Kilomètrages parcouru mars]],IF(Tableau25[[#This Row],[Kilomètrages parcouru mars]]<=20000,VLOOKUP(Tableau25[[#This Row],[nombre de cv]],Tableau3[],3)*Tableau25[[#This Row],[Kilomètrages parcouru mars]]+VLOOKUP(Tableau25[[#This Row],[nombre de cv]],Tableau3[],4),VLOOKUP(Tableau25[[#This Row],[nombre de cv]],Tableau3[],5)*Tableau25[[#This Row],[Kilomètrages parcouru mars]])),2) -> 235.59 | F8: =ikv(Tableau25[[#This Row],[nombre de cv]],Tableau25[[#This Row],[Type véhicule]],Tableau25[[#This Row],[Kilomètrages parcouru mars]],Tableau3[]) -> 235.59
A9: salarié 6 | B9: =VLOOKUP(Tableau25[[#This Row],[salariés]],Tableau1[],2,0) -> 10 | C9: =VLOOKUP(Tableau25[[#This Row],[salariés]],Tableau1[],3,0) -> diesel | D9: =VLOOKUP(Tableau25[[#This Row],[salariés]],Tableau2[],2,0) -> 610 | E9: =ROUND(IF(Tableau25[[#This Row],[Type véhicule]]="électrique",1.2,1)*IF(Tableau25[[#This Row],[Kilomètrages parcouru mars]]<=5000,VLOOKUP(Tableau25[[#This Row],[nombre de cv]],Tableau3[],2)*Tableau25[[#This Row],[Kilomètrages parcouru mars]],IF(Tableau25[[#This Row],[Kilomètrages parcouru mars]]<=20000,VLOOKUP(Tableau25[[#This Row],[nombre de cv]],Tableau3[],3)*Tableau25[[#This Row],[Kilomètrages parcouru mars]]+VLOOKUP(Tableau25[[#This Row],[nombre de cv]],Tableau3[],4),VLOOKUP(Tableau25[[#This Row],[nombre de cv]],Tableau3[],5)*Tableau25[[#This Row],[Kilomètrages parcouru mars]])),2) -> 366.61 | F9: =ikv(Tableau25[[#This Row],[nombre de cv]],Tableau25[[#This Row],[Type véhicule]],Tableau25[[#This Row],[Kilomètrages parcouru mars]],Tableau3[]) -> 366.61
A10: salarié 7 | B10: =VLOOKUP(Tableau25[[#This Row],[salariés]],Tableau1[],2,0) -> 7 | C10: =VLOOKUP(Tableau25[[#This Row],[salariés]],Tableau1[],3,0) -> diesel | D10: =VLOOKUP(Tableau25[[#This Row],[salariés]],Tableau2[],2,0) -> 423 | E10: =ROUND(IF(Tableau25[[#This Row],[Type véhicule]]="électrique",1.2,1)*IF(Tableau25[[#This Row],[Kilomètrages parcouru mars]]<=5000,VLOOKUP(Tableau25[[#This Row],[nombre de cv]],Tableau3[],2)*Tableau25[[#This Row],[Kilomètrages parcouru mars]],IF(Tableau25[[#This Row],[Kilomètrages parcouru mars]]<=20000,VLOOKUP(Tableau25[[#This Row],[nombre de cv]],Tableau3[],3)*Tableau25[[#This Row],[Kilomètrages parcouru mars]]+VLOOKUP(Tableau25[[#This Row],[nombre de cv]],Tableau3[],4),VLOOKUP(Tableau25[[#This Row],[nombre de cv]],Tableau3[],5)*Tableau25[[#This Row],[Kilomètrages parcouru mars]])),2) -> 254.22 | F10: =ikv(Tableau25[[#This Row],[nombre de cv]],Tableau25[[#This Row],[Type véhicule]],Tableau25[[#This Row],[Kilomètrages parcouru mars]],Tableau3[]) -> 254.22
A11: salarié 8 | B11: =VLOOKUP(Tableau25[[#This Row],[salariés]],Tableau1[],2,0) -> 3 | C11: =VLOOKUP(Tableau25[[#This Row],[salariés]],Tableau1[],3,0) -> Essence | D11: =VLOOKUP(Tableau25[[#This Row],[salariés]],Tableau2[],2,0) -> 90 | E11: =ROUND(IF(Tableau25[[#This Row],[Type véhicule]]="électrique",1.2,1)*IF(Tableau25[[#This Row],[Kilomètrages parcouru mars]]<=5000,VLOOKUP(Tableau25[[#This Row],[nombre de cv]],Tableau3[],2)*Tableau25[[#This Row],[Kilomètrages parcouru mars]],IF(Tableau25[[#This Row],[Kilomètrages parcouru mars]]<=20000,VLOOKUP(Tableau25[[#This Row],[nombre de cv]],Tableau3[],3)*Tableau25[[#This Row],[Kilomètrages parcouru mars]]+VLOOKUP(Tableau25[[#This Row],[nombre de cv]],Tableau3[],4),VLOOKUP(Tableau25[[#This Row],[nombre de cv]],Tableau3[],5)*Tableau25[[#This Row],[Kilomètrages parcouru mars]])),2) -> 41.04 | F11: =ikv(Tableau25[[#This Row],[nombre de cv]],Tableau25[[#This Row],[Type véhicule]],Tableau25[[#This Row],[Kilomètrages parcouru mars]],Tableau3[]) -> 41.04
A12: salarié 9 | B12: =VLOOKUP(Tableau25[[#This Row],[salariés]],Tableau1[],2,0) -> 10 | C12: =VLOOKUP(Tableau25[[#This Row],[salariés]],Tableau1[],3,0) -> diesel | D12: =VLOOKUP(Tableau25[[#This Row],[salariés]],Tableau2[],2,0) -> 721 | E12: =ROUND(IF(Tableau25[[#This Row],[Type véhicule]]="électrique",1.2,1)*IF(Tableau25[[#This Row],[Kilomètrages parcouru mars]]<=5000,VLOOKUP(Tableau25[[#This Row],[nombre de cv]],Tableau3[],2)*Tableau25[[#This Row],[Kilomètrages parcouru mars]],IF(Tableau25[[#This Row],[Kilomètrages parcouru mars]]<=20000,VLOOKUP(Tableau25[[#This Row],[nombre de cv]],Tableau3[],3)*Tableau25[[#This Row],[Kilomètrages parcouru mars]]+VLOOKUP(Tableau25[[#This Row],[nombre de cv]],Tableau3[],4),VLOOKUP(Tableau25[[#This Row],[nombre de cv]],Tableau3[],5)*Tableau25[[#This Row],[Kilomètrages parcouru mars]])),2) -> 433.32 | F12: =ikv(Tableau25[[#This Row],[nombre de cv]],Tableau25[[#This Row],[Type véhicule]],Tableau25[[#This Row],[Kilomètrages parcouru mars]],Tableau3[]) -> 433.32
A13: salarié 10 | B13: =VLOOKUP(Tableau25[[#This Row],[salariés]],Tableau1[],2,0) -> 5 | C13: =VLOOKUP(Tableau25[[#This Row],[salariés]],Tableau1[],3,0) -> électrique | D13: =VLOOKUP(Tableau25[[#This Row],[salariés]],Tableau2[],2,0) -> 426 | E13: =ROUND(IF(Tableau25[[#This Row],[Type véhicule]]="électrique",1.2,1)*IF(Tableau25[[#This Row],[Kilomètrages parcouru mars]]<=5000,VLOOKUP(Tableau25[[#This Row],[nombre de cv]],Tableau3[],2)*Tableau25[[#This Row],[Kilomètrages parcouru mars]],IF(Tableau25[[#This Row],[Kilomètrages parcouru mars]]<=20000,VLOOKUP(Tableau25[[#This Row],[nombre de cv]],Tableau3[],3)*Tableau25[[#This Row],[Kilomètrages parcouru mars]]+VLOOKUP(Tableau25[[#This Row],[nombre de cv]],Tableau3[],4),VLOOKUP(Tableau25[[#This Row],[nombre de cv]],Tableau3[],5)*Tableau25[[#This Row],[Kilomètrages parcouru mars]])),2) -> 280.14 | F13: =ikv(Tableau25[[#This Row],[nombre de cv]],Tableau25[[#This Row],[Type véhicule]],Tableau25[[#This Row],[Kilomètrages parcouru mars]],Tableau3[]) -> 280.14
A14: salarié 11 | B14: =VLOOKUP(Tableau25[[#This Row],[salariés]],Tableau1[],2,0) -> 9 | C14: =VLOOKUP(Tableau25[[#This Row],[salariés]],Tableau1[],3,0) -> diesel | D14: =VLOOKUP(Tableau25[[#This Row],[salariés]],Tableau2[],2,0) -> 222 | E14: =ROUND(IF(Tableau25[[#This Row],[Type véhicule]]="électrique",1.2,1)*IF(Tableau25[[#This Row],[Kilomètrages parcouru mars]]<=5000,VLOOKUP(Tableau25[[#This Row],[nombre de cv]],Tableau3[],2)*Tableau25[[#This Row],[Kilomètrages parcouru mars]],IF(Tableau25[[#This Row],[Kilomètrages parcouru mars]]<=20000,VLOOKUP(Tableau25[[#This Row],[nombre de cv]],Tableau3[],3)*Tableau25[[#This Row],[Kilomètrages parcouru mars]]+VLOOKUP(Tableau25[[#This Row],[nombre de cv]],Tableau3[],4),VLOOKUP(Tableau25[[#This Row],[nombre de cv]],Tableau3[],5)*Tableau25[[#This Row],[Kilomètrages parcouru mars]])),2) -> 133.42 | F14: =ikv(Tableau25[[#This Row],[nombre de cv]],Tableau25[[#This Row],[Type véhicule]],Tableau25[[#This Row],[Kilomètrages parcouru mars]],Tableau3[]) -> 133.42
A15: salarié 12 | B15: =VLOOKUP(Tableau25[[#This Row],[salariés]],Tableau1[],2,0) -> 4 | C15: =VLOOKUP(Tableau25[[#This Row],[salariés]],Tableau1[],3,0) -> Essence | D15: =VLOOKUP(Tableau25[[#This Row],[salariés]],Tableau2[],2,0) -> 212 | E15: =ROUND(IF(Tableau25[[#This Row],[Type véhicule]]="électrique",1.2,1)*IF(Tableau25[[#This Row],[Kilomètrages parcouru mars]]<=5000,VLOOKUP(Tableau25[[#This Row],[nombre de cv]],Tableau3[],2)*Tableau25[[#This Row],[Kilomètrages parcouru mars]],IF(Tableau25[[#This Row],[Kilomètrages parcouru mars]]<=20000,VLOOKUP(Tableau25[[#This Row],[nombre de cv]],Tableau3[],3)*Tableau25[[#This Row],[Kilomètrages parcouru mars]]+VLOOKUP(Tableau25[[#This Row],[nombre de cv]],Tableau3[],4),VLOOKUP(Tableau25[[#This Row],[nombre de cv]],Tableau3[],5)*Tableau25[[#This Row],[Kilomètrages parcouru mars]])),2) -> 110.88 | F15: =ikv(Tableau25[[#This Row],[nombre de cv]],Tableau25[[#This Row],[Type véhicule]],Tableau25[[#This Row],[Kilomètrages parcouru mars]],Tableau3[]) -> 110.88
A16: salarié 13 | B16: =VLOOKUP(Tableau25[[#This Row],[salariés]],Tableau1[],2,0) -> 3 | C16: =VLOOKUP(Tableau25[[#This Row],[salariés]],Tableau1[],3,0) -> électrique | D16: =VLOOKUP(Tableau25[[#This Row],[salariés]],Tableau2[],2,0) -> 455 | E16: =ROUND(IF(Tableau25[[#This Row],[Type véhicule]]="électrique",1.2,1)*IF(Tableau25[[#This Row],[Kilomètrages parcouru mars]]<=5000,VLOOKUP(Tableau25[[#This Row],[nombre de cv]],Tableau3[],2)*Tableau25[[#This Row],[Kilomètrages parcouru mars]],IF(Tableau25[[#This Row],[Kilomètrages parcouru mars]]<=20000,VLOOKUP(Tableau25[[#This Row],[nombre de cv]],Tableau3[],3)*Tableau25[[#This Row],[Kilomètrages parcouru mars]]+VLOOKUP(Tableau25[[#This Row],[nombre de cv]],Tableau3[],4),VLOOKUP(Tableau25[[#This Row],[nombre de cv]],Tableau3[],5)*Tableau25[[#This Row],[Kilomètrages parcouru mars]])),2) -> 248.98 | F16: =ikv(Tableau25[[#This Row],[nombre de cv]],Tableau25[[#This Row],[Type véhicule]],Tableau25[[#This Row],[Kilomètrages parcouru mars]],Tableau3[]) -> 248.98
A17: salarié 14 | B17: =VLOOKUP(Tableau25[[#This Row],[salariés]],Tableau1[],2,0) -> 10 | C17: =VLOOKUP(Tableau25[[#This Row],[salariés]],Tableau1[],3,0) -> essence | D17: =VLOOKUP(Tableau25[[#This Row],[salariés]],Tableau2[],2,0) -> 1021 | E17: =ROUND(IF(Tableau25[[#This Row],[Type véhicule]]="électrique",1.2,1)*IF(Tableau25[[#This Row],[Kilomètrages parcouru mars]]<=5000,VLOOKUP(Tableau25[[#This Row],[nombre de cv]],Tableau3[],2)*Tableau25[[#This Row],[Kilomètrages parcouru mars]],IF(Tableau25[[#This Row],[Kilomètrages parcouru mars]]<=20000,VLOOKUP(Tableau25[[#This Row],[nombre de cv]],Tableau3[],3)*Tableau25[[#This Row],[Kilomètrages parcouru mars]]+VLOOKUP(Tableau25[[#This Row],[nombre de cv]],Tableau3[],4),VLOOKUP(Tableau25[[#This Row],[nombre de cv]],Tableau3[],5)*Tableau25[[#This Row],[Kilomètrages parcouru mars]])),2) -> 613.62 | F17: =ikv(Tableau25[[#This Row],[nombre de cv]],Tableau25[[#This Row],[Type véhicule]],Tableau25[[#This Row],[Kilomètrages parcouru mars]],Tableau3[]) -> 613.62
A18: salarié 15 | B18: =VLOOKUP(Tableau25[[#This Row],[salariés]],Tableau1[],2,0) -> 3 | C18: =VLOOKUP(Tableau25[[#This Row],[salariés]],Tableau1[],3,0) -> électrique | D18: =VLOOKUP(Tableau25[[#This Row],[salariés]],Tableau2[],2,0) -> 789 | E18: =ROUND(IF(Tableau25[[#This Row],[Type véhicule]]="électrique",1.2,1)*IF(Tableau25[[#This Row],[Kilomètrages parcouru mars]]<=5000,VLOOKUP(Tableau25[[#This Row],[nombre de cv]],Tableau3[],2)*Tableau25[[#This Row],[Kilomètrages parcouru mars]],IF(Tableau25[[#This Row],[Kilomètrages parcouru mars]]<=20000,VLOOKUP(Tableau25[[#This Row],[nombre de cv]],Tableau3[],3)*Tableau25[[#This Row],[Kilomètrages parcouru mars]]+VLOOKUP(Tableau25[[#This Row],[nombre de cv]],Tableau3[],4),VLOOKUP(Tableau25[[#This Row],[nombre de cv]],Tableau3[],5)*Tableau25[[#This Row],[Kilomètrages parcouru mars]])),2) -> 431.74 | F18: =ikv(Tableau25[[#This Row],[nombre de cv]],Tableau25[[#This Row],[Type véhicule]],Tableau25[[#This Row],[Kilomètrages parcouru mars]],Tableau3[]) -> 431.74
A19: salarié 16 | B19: =VLOOKUP(Tableau25[[#This Row],[salariés]],Tableau1[],2,0) -> 10 | C19: =VLOOKUP(Tableau25[[#This Row],[salariés]],Tableau1[],3,0) -> essence | D19: =VLOOKUP(Tableau25[[#This Row],[salariés]],Tableau2[],2,0) -> 144 | E19: =ROUND(IF(Tableau25[[#This Row],[Type véhicule]]="électrique",1.2,1)*IF(Tableau25[[#This Row],[Kilomètrages parcouru mars]]<=5000,VLOOKUP(Tableau25[[#This Row],[nombre de cv]],Tableau3[],2)*Tableau25[[#This Row],[Kilomètrages parcouru mars]],IF(Tableau25[[#This Row],[Kilomètrages parcouru mars]]<=20000,VLOOKUP(Tableau25[[#This Row],[nombre de cv]],Tableau3[],3)*Tableau25[[#This Row],[Kilomètrages parcouru mars]]+VLOOKUP(Tableau25[[#This Row],[nombre de cv]],Tableau3[],4),VLOOKUP(Tableau25[[#This Row],[nombre de cv]],Tableau3[],5)*Tableau25[[#This Row],[Kilomètrages parcouru mars]])),2) -> 86.54 | F19: =ikv(Tableau25[[#This Row],[nombre de cv]],Tableau25[[#This Row],[Type véhicule]],Tableau25[[#This Row],[Kilomètrages parcouru mars]],Tableau3[]) -> 86.54
A20: salarié 17 | B20: =VLOOKUP(Tableau25[[#This Row],[salariés]],Tableau1[],2,0) -> 6 | C20: =VLOOKUP(Tableau25[[#This Row],[salariés]],Tableau1[],3,0) -> Essence | D20: =VLOOKUP(Tableau25[[#This Row],[salariés]],Tableau2[],2,0) -> 604 | E20: =ROUND(IF(Tableau25[[#This Row],[Type véhicule]]="électrique",1.2,1)*IF(Tableau25[[#This Row],[Kilomètrages parcouru mars]]<=5000,VLOOKUP(Tableau25[[#This Row],[nombre de cv]],Tableau3[],2)*Tableau25[[#This Row],[Kilomètrages parcouru mars]],IF(Tableau25[[#This Row],[Kilomètrages parcouru mars]]<=20000,VLOOKUP(Tableau25[[#This Row],[nombre de cv]],Tableau3[],3)*Tableau25[[#This Row],[Kilomètrages parcouru mars]]+VLOOKUP(Tableau25[[#This Row],[nombre de cv]],Tableau3[],4),VLOOKUP(Tableau25[[#This Row],[nombre de cv]],Tableau3[],5)*Tableau25[[#This Row],[Kilomètrages parcouru mars]])),2) -> 346.7 | F20: =ikv(Tableau25[[#This Row],[nombre de cv]],Tableau25[[#This Row],[Type véhicule]],Tableau25[[#This Row],[Kilomètrages parcouru mars]],Tableau3[]) -> 346.7
A21: salarié 18 | B21: =VLOOKUP(Tableau25[[#This Row],[salariés]],Tableau1[],2,0) -> 10 | C21: =VLOOKUP(Tableau25[[#This Row],[salariés]],Tableau1[],3,0) -> essence | D21: =VLOOKUP(Tableau25[[#This Row],[salariés]],Tableau2[],2,0) -> 22 | E21: =ROUND(IF(Tableau25[[#This Row],[Type véhicule]]="électrique",1.2,1)*IF(Tableau25[[#This Row],[Kilomètrages parcouru mars]]<=5000,VLOOKUP(Tableau25[[#This Row],[nombre de cv]],Tableau3[],2)*Tableau25[[#This Row],[Kilomètrages parcouru mars]],IF(Tableau25[[#This Row],[Kilomètrages parcouru mars]]<=20000,VLOOKUP(Tableau25[[#This Row],[nombre de cv]],Tableau3[],3)*Tableau25[[#This Row],[Kilomètrages parcouru mars]]+VLOOKUP(Tableau25[[#This Row],[nombre de cv]],Tableau3[],4),VLOOKUP(Tableau25[[#This Row],[nombre de cv]],Tableau3[],5)*Tableau25[[#This Row],[Kilomètrages parcouru mars]])),2) -> 13.22 | F21: =ikv(Tableau25[[#This Row],[nombre de cv]],Tableau25[[#This Row],[Type véhicule]],Tableau25[[#This Row],[Kilomètrages parcouru mars]],Tableau3[]) -> 13.22
A22: salarié 19 | B22: =VLOOKUP(Tableau25[[#This Row],[salariés]],Tableau1[],2,0) -> 9 | C22: =VLOOKUP(Tableau25[[#This Row],[salariés]],Tableau1[],3,0) -> diesel | D22: =VLOOKUP(Tableau25[[#This Row],[salariés]],Tableau2[],2,0) -> 1010 | E22: =ROUND(IF(Tableau25[[#This Row],[Type véhicule]]="électrique",1.2,1)*IF(Tableau25[[#This Row],[Kilomètrages parcouru mars]]<=5000,VLOOKUP(Tableau25[[#This Row],[nombre de cv]],Tableau3[],2)*Tableau25[[#This Row],[Kilomètrages parcouru mars]],IF(Tableau25[[#This Row],[Kilomètrages parcouru mars]]<=20000,VLOOKUP(Tableau25[[#This Row],[nombre de cv]],Tableau3[],3)*Tableau25[[#This Row],[Kilomètrages parcouru mars]]+VLOOKUP(Tableau25[[#This Row],[nombre de cv]],Tableau3[],4),VLOOKUP(Tableau25[[#This Row],[nombre de cv]],Tableau3[],5)*Tableau25[[#This Row],[Kilomètrages parcouru mars]])),2) -> 607.01 | F22: =ikv(Tableau25[[#This Row],[nombre de cv]],Tableau25[[#This Row],[Type véhicule]],Tableau25[[#This Row],[Kilomètrages parcouru mars]],Tableau3[]) -> 607.01
A23: salarié 20 | B23: =VLOOKUP(Tableau25[[#This Row],[salariés]],Tableau1[],2,0) -> 4 | C23: =VLOOKUP(Tableau25[[#This Row],[salariés]],Tableau1[],3,0) -> Essence | D23: =VLOOKUP(Tableau25[[#This Row],[salariés]],Tableau2[],2,0) -> 14 | E23: =ROUND(IF(Tableau25[[#This Row],[Type véhicule]]="électrique",1.2,1)*IF(Tableau25[[#This Row],[Kilomètrages parcouru mars]]<=5000,VLOOKUP(Tableau25[[#This Row],[nombre de cv]],Tableau3[],2)*Tableau25[[#This Row],[Kilomètrages parcouru mars]],IF(Tableau25[[#This Row],[Kilomètrages parcouru mars]]<=20000,VLOOKUP(Tableau25[[#This Row],[nombre de cv]],Tableau3[],3)*Tableau25[[#This Row],[Kilomètrages parcouru mars]]+VLOOKUP(Tableau25[[#This Row],[nombre de cv]],Tableau3[],4),VLOOKUP(Tableau25[[#This Row],[nombre de cv]],Tableau3[],5)*Tableau25[[#This Row],[Kilomètrages parcouru mars]])),2) -> 7.32 | F23: =ikv(Tableau25[[#This Row],[nombre de cv]],Tableau25[[#This Row],[Type véhicule]],Tableau25[[#This Row],[Kilomètrages parcouru mars]],Tableau3[]) -> 7.32
A24: salarié 21 | B24: =VLOOKUP(Tableau25[[#This Row],[salariés]],Tableau1[],2,0) -> 6 | C24: =VLOOKUP(Tableau25[[#This Row],[salariés]],Tableau1[],3,0) -> Essence | D24: =VLOOKUP(Tableau25[[#This Row],[salariés]],Tableau2[],2,0) -> 473 | E24: =ROUND(IF(Tableau25[[#This Row],[Type véhicule]]="électrique",1.2,1)*IF(Tableau25[[#This Row],[Kilomètrages parcouru mars]]<=5000,VLOOKUP(Tableau25[[#This Row],[nombre de cv]],Tableau3[],2)*Tableau25[[#This Row],[Kilomètrages parcouru mars]],IF(Tableau25[[#This Row],[Kilomètrages parcouru mars]]<=20000,VLOOKUP(Tableau25[[#This Row],[nombre de cv]],Tableau3[],3)*Tableau25[[#This Row],[Kilomètrages parcouru mars]]+VLOOKUP(Tableau25[[#This Row],[nombre de cv]],Tableau3[],4),VLOOKUP(Tableau25[[#This Row],[nombre de cv]],Tableau3[],5)*Tableau25[[#This Row],[Kilomètrages parcouru mars]])),2) -> 271.5 | F24: =ikv(Tableau25[[#This Row],[nombre de cv]],Tableau25[[#This Row],[Type véhicule]],Tableau25[[#This Row],[Kilomètrages parcouru mars]],Tableau3[]) -> 271.5
A25: salarié 22 | B25: =VLOOKUP(Tableau25[[#This Row],[salariés]],Tableau1[],2,0) -> 3 | C25: =VLOOKUP(Tableau25[[#This Row],[salariés]],Tableau1[],3,0) -> électrique | D25: =VLOOKUP(Tableau25[[#This Row],[salariés]],Tableau2[],2,0) -> 686 | E25: =ROUND(IF(Tableau25[[#This Row],[Type véhicule]]="électrique",1.2,1)*IF(Tableau25[[#This Row],[Kilomètrages parcouru mars]]<=5000,VLOOKUP(Tableau25[[#This Row],[nombre de cv]],Tableau3[],2)*Tableau25[[#This Row],[Kilomètrages parcouru mars]],IF(Tableau25[[#This Row],[Kilomètrages parcouru mars]]<=20000,VLOOKUP(Tableau25[[#This Row],[nombre de cv]],Tableau3[],3)*Tableau25[[#This Row],[Kilomètrages parcouru mars]]+VLOOKUP(Tableau25[[#This Row],[nombre de cv]],Tableau3[],4),VLOOKUP(Tableau25[[#This Row],[nombre de cv]],Tableau3[],5)*Tableau25[[#This Row],[Kilomètrages parcouru mars]])),2) -> 375.38 | F25: =ikv(Tableau25[[#This Row],[nombre de cv]],Tableau25[[#This Row],[Type véhicule]],Tableau25[[#This Row],[Kilomètrages parcouru mars]],Tableau3[]) -> 375.38
A26: salarié 23 | B26: =VLOOKUP(Tableau25[[#This Row],[salariés]],Tableau1[],2,0) -> 6 | C26: =VLOOKUP(Tableau25[[#This Row],[salariés]],Tableau1[],3,0) -> Essence | D26: =VLOOKUP(Tableau25[[#This Row],[salariés]],Tableau2[],2,0) -> 608 | E26: =ROUND(IF(Tableau25[[#This Row],[Type véhicule]]="électrique",1.2,1)*IF(Tableau25[[#This Row],[Kilomètrages parcouru mars]]<=5000,VLOOKUP(Tableau25[[#This Row],[nombre de cv]],Tableau3[],2)*Tableau25[[#This Row],[Kilomètrages parcouru mars]],IF(Tableau25[[#This Row],[Kilomètrages parcouru mars]]<=20000,VLOOKUP(Tableau25[[#This Row],[nombre de cv]],Tableau3[],3)*Tableau25[[#This Row],[Kilomètrages parcouru mars]]+VLOOKUP(Tableau25[[#This Row],[nombre de cv]],Tableau3[],4),VLOOKUP(Tableau25[[#This Row],[nombre de cv]],Tableau3[],5)*Tableau25[[#This Row],[Kilomètrages parcouru mars]])),2) -> 348.99 | F26: =ikv(Tableau25[[#This Row],[nombre de cv]],Tableau25[[#This Row],[Type véhicule]],Tableau25[[#This Row],[Kilomètrages parcouru mars]],Tableau3[]) -> 348.99
A27: salarié 24 | B27: =VLOOKUP(Tableau25[[#This Row],[salariés]],Tableau1[],2,0) -> 8 | C27: =VLOOKUP(Tableau25[[#This Row],[salariés]],Tableau1[],3,0) -> diesel | D27: =VLOOKUP(Tableau25[[#This Row],[salariés]],Tableau2[],2,0) -> 161 | E27: =ROUND(IF(Tableau25[[#This Row],[Type véhicule]]="électrique",1.2,1)*IF(Tableau25[[#This Row],[Kilomètrages parcouru mars]]<=5000,VLOOKUP(Tableau25[[#This Row],[nombre de cv]],Tableau3[],2)*Tableau25[[#This Row],[Kilomètrages parcouru mars]],IF(Tableau25[[#This Row],[Kilomètrages parcouru mars]]<=20000,VLOOKUP(Tableau25[[#This Row],[nombre de cv]],Tableau3[],3)*Tableau25[[#This Row],[Kilomètrages parcouru mars]]+VLOOKUP(Tableau25[[#This Row],[nombre de cv]],Tableau3[],4),VLOOKUP(Tableau25[[#This Row],[nombre de cv]],Tableau3[],5)*Tableau25[[#This Row],[Kilomètrages parcouru mars]])),2) -> 96.76 | F27: =ikv(Tableau25[[#This Row],[nombre de cv]],Tableau25[[#This Row],[Type véhicule]],Tableau25[[#This Row],[Kilomètrages parcouru mars]],Tableau3[]) -> 96.76
A28: salarié 25 | B28: =VLOOKUP(Tableau25[[#This Row],[salariés]],Tableau1[],2,0) -> 3 | C28: =VLOOKUP(Tableau25[[#This Row],[salariés]],Tableau1[],3,0) -> Essence | D28: =VLOOKUP(Tableau25[[#This Row],[salariés]],Tableau2[],2,0) -> 471 | E28: =ROUND(IF(Tableau25[[#This Row],[Type véhicule]]="électrique",1.2,1)*IF(Tableau25[[#This Row],[Kilomètrages parcouru mars]]<=5000,VLOOKUP(Tableau25[[#This Row],[nombre de cv]],Tableau3[],2)*Tableau25[[#This Row],[Kilomètrages parcouru mars]],IF(Tableau25[[#This Row],[Kilomètrages parcouru mars]]<=20000,VLOOKUP(Tableau25[[#This Row],[nombre de cv]],Tableau3[],3)*Tableau25[[#This Row],[Kilomètrages parcouru mars]]+VLOOKUP(Tableau25[[#This Row],[nombre de cv]],Tableau3[],4),VLOOKUP(Tableau25[[#This Row],[nombre de cv]],Tableau3[],5)*Tableau25[[#This Row],[Kilomètrages parcouru mars]])),2) -> 214.78 | F28: =ikv(Tableau25[[#This Row],[nombre de cv]],Tableau25[[#This Row],[Type véhicule]],Tableau25[[#This Row],[Kilomètrages parcouru mars]],Tableau3[]) -> 214.78 | H28: Function Ikv(CV As Integer, TypeV As String, Nbkm As Single, Bareme As Range)
A29: salarié 26 | B29: =VLOOKUP(Tableau25[[#This Row],[salariés]],Tableau1[],2,0) -> 4 | C29: =VLOOKUP(Tableau25[[#This Row],[salariés]],Tableau1[],3,0) -> Essence | D29: =VLOOKUP(Tableau25[[#This Row],[salariés]],Tableau2[],2,0) -> 72 | E29: =ROUND(IF(Tableau25[[#This Row],[Type véhicule]]="électrique",1.2,1)*IF(Tableau25[[#This Row],[Kilomètrages parcouru mars]]<=5000,VLOOKUP(Tableau25[[#This Row],[nombre de cv]],Tableau3[],2)*Tableau25[[#This Row],[Kilomètrages parcouru mars]],IF(Tableau25[[#This Row],[Kilomètrages parcouru mars]]<=20000,VLOOKUP(Tableau25[[#This Row],[nombre de cv]],Tableau3[],3)*Tableau25[[#This Row],[Kilomètrages parcouru mars]]+VLOOKUP(Tableau25[[#This Row],[nombre de cv]],Tableau3[],4),VLOOKUP(Tableau25[[#This Row],[nombre de cv]],Tableau3[],5)*Tableau25[[#This Row],[Kilomètrages parcouru mars]])),2) -> 37.66 | F29: =ikv(Tableau25[[#This Row],[nombre de cv]],Tableau25[[#This Row],[Type véhicule]],Tableau25[[#This Row],[Kilomètrages parcouru mars]],Tableau3[]) -> 37.66 | H29: If Nbkm <= 5000 Then
A30: salarié 27 | B30: =VLOOKUP(Tableau25[[#This Row],[salariés]],Tableau1[],2,0) -> 5 | C30: =VLOOKUP(Tableau25[[#This Row],[salariés]],Tableau1[],3,0) -> électrique | D30: =VLOOKUP(Tableau25[[#This Row],[salariés]],Tableau2[],2,0) -> 542 | E30: =ROUND(IF(Tableau25[[#This Row],[Type véhicule]]="électrique",1.2,1)*IF(Tableau25[[#This Row],[Kilomètrages parcouru mars]]<=5000,VLOOKUP(Tableau25[[#This Row],[nombre de cv]],Tableau3[],2)*Tableau25[[#This Row],[Kilomètrages parcouru mars]],IF(Tableau25[[#This Row],[Kilomètrages parcouru mars]]<=20000,VLOOKUP(Tableau25[[#This Row],[nombre de cv]],Tableau3[],3)*Tableau25[[#This Row],[Kilomètrages parcouru mars]]+VLOOKUP(Tableau25[[#This Row],[nombre de cv]],Tableau3[],4),VLOOKUP(Tableau25[[#This Row],[nombre de cv]],Tableau3[],5)*Tableau25[[#This Row],[Kilomètrages parcouru mars]])),2) -> 356.42 | F30: =ikv(Tableau25[[#This Row],[nombre de cv]],Tableau25[[#This Row],[Type véhicule]],Tableau25[[#This Row],[Kilomètrages parcouru mars]],Tableau3[]) -> 356.42 | H30: Ikv = Application.VLookup(CV, Bareme, 2) * Nbkm
A31: salarié 28 | B31: =VLOOKUP(Tableau25[[#This Row],[salariés]],Tableau1[],2,0) -> 10 | C31: =VLOOKUP(Tableau25[[#This Row],[salariés]],Tableau1[],3,0) -> essence | D31: =VLOOKUP(Tableau25[[#This Row],[salariés]],Tableau2[],2,0) -> 345 | E31: =ROUND(IF(Tableau25[[#This Row],[Type véhicule]]="électrique",1.2,1)*IF(Tableau25[[#This Row],[Kilomètrages parcouru mars]]<=5000,VLOOKUP(Tableau25[[#This Row],[nombre de cv]],Tableau3[],2)*Tableau25[[#This Row],[Kilomètrages parcouru mars]],IF(Tableau25[[#This Row],[Kilomètrages parcouru mars]]<=20000,VLOOKUP(Tableau25[[#This Row],[nombre de cv]],Tableau3[],3)*Tableau25[[#This Row],[Kilomètrages parcouru mars]]+VLOOKUP(Tableau25[[#This Row],[nombre de cv]],Tableau3[],4),VLOOKUP(Tableau25[[#This Row],[nombre de cv]],Tableau3[],5)*Tableau25[[#This Row],[Kilomètrages parcouru mars]])),2) -> 207.35 | F31: =ikv(Tableau25[[#This Row],[nombre de cv]],Tableau25[[#This Row],[Type véhicule]],Tableau25[[#This Row],[Kilomètrages parcouru mars]],Tableau3[]) -> 207.34 | H31: ElseIf Nbkm <= 20000 Then
A32: salarié 29 | B32: =VLOOKUP(Tableau25[[#This Row],[salariés]],Tableau1[],2,0) -> 8 | C32: =VLOOKUP(Tableau25[[#This Row],[salariés]],Tableau1[],3,0) -> diesel | D32: =VLOOKUP(Tableau25[[#This Row],[salariés]],Tableau2[],2,0) -> 553 | E32: =ROUND(IF(Tableau25[[#This Row],[Type véhicule]]="électrique",1.2,1)*IF(Tableau25[[#This Row],[Kilomètrages parcouru mars]]<=5000,VLOOKUP(Tableau25[[#This Row],[nombre de cv]],Tableau3[],2)*Tableau25[[#This Row],[Kilomètrages parcouru mars]],IF(Tableau25[[#This Row],[Kilomètrages parcouru mars]]<=20000,VLOOKUP(Tableau25[[#This Row],[nombre de cv]],Tableau3[],3)*Tableau25[[#This Row],[Kilomètrages parcouru mars]]+VLOOKUP(Tableau25[[#This Row],[nombre de cv]],Tableau3[],4),VLOOKUP(Tableau25[[#This Row],[nombre de cv]],Tableau3[],5)*Tableau25[[#This Row],[Kilomètrages parcouru mars]])),2) -> 332.35 | F32: =ikv(Tableau25[[#This Row],[nombre de cv]],Tableau25[[#This Row],[Type véhicule]],Tableau25[[#This Row],[Kilomètrages parcouru mars]],Tableau3[]) -> 332.35 | H32: Ikv = (Application.VLookup(CV, Bareme, 3) * Nbkm + Application.VLookup(CV, Bareme, 4))
A33: salarié 30 | B33: =VLOOKUP(Tableau25[[#This Row],[salariés]],Tableau1[],2,0) -> 9 | C33: =VLOOKUP(Tableau25[[#This Row],[salariés]],Tableau1[],3,0) -> diesel | D33: =VLOOKUP(Tableau25[[#This Row],[salariés]],Tableau2[],2,0) -> 869 | E33: =ROUND(IF(Tableau25[[#This Row],[Type véhicule]]="électrique",1.2,1)*IF(Tableau25[[#This Row],[Kilomètrages parcouru mars]]<=5000,VLOOKUP(Tableau25[[#This Row],[nombre de cv]],Tableau3[],2)*Tableau25[[#This Row],[Kilomètrages parcouru mars]],IF(Tableau25[[#This Row],[Kilomètrages parcouru mars]]<=20000,VLOOKUP(Tableau25[[#This Row],[nombre de cv]],Tableau3[],3)*Tableau25[[#This Row],[Kilomètrages parcouru mars]]+VLOOKUP(Tableau25[[#This Row],[nombre de cv]],Tableau3[],4),VLOOKUP(Tableau25[[#This Row],[nombre de cv]],Tableau3[],5)*Tableau25[[#This Row],[Kilomètrages parcouru mars]])),2) -> 522.27 | F33: =ikv(Tableau25[[#This Row],[nombre de cv]],Tableau25[[#This Row],[Type véhicule]],Tableau25[[#This Row],[Kilomètrages parcouru mars]],Tableau3[]) -> 522.27 | H33: Else: Ikv = (Application.VLookup(CV, Bareme, 5) * Nbkm)
C34: totaux | D34: =SUM(D4:D33) -> 13459 | E34: =SUM(E4:E33) -> 7853.2 | F34: =SUM(F4:F33) -> 7853.18 | H34: End If
H35: If TypeV = "électrique" Then
H36: Ikv = Ikv * 1.2
H37: End If
H38: Ikv = Round(Ikv, 2)
H39: End Function

Sheet salariés
A1: salariés | B1: nombre de cv | C1: Type véhicule
A2: salarié 1 | B2: 3 | C2: Essence
A3: salarié 2 | B3: 5 | C3: électrique
A4: salarié 3 | B4: 4 | C4: Essence
A5: salarié 4 | B5: 6 | C5: Essence
A6: salarié 5 | B6: 8 | C6: diesel
A7: salarié 6 | B7: 10 | C7: diesel
A8: salarié 7 | B8: 7 | C8: diesel
A9: salarié 8 | B9: 3 | C9: Essence
A10: salarié 9 | B10: 10 | C10: diesel
A11: salarié 10 | B11: 5 | C11: électrique
A12: salarié 11 | B12: 9 | C12: diesel
A13: salarié 12 | B13: 4 | C13: Essence
A14: salarié 13 | B14: 3 | C14: électrique
A15: salarié 14 | B15: 10 | C15: essence
A16: salarié 15 | B16: 3 | C16: électrique
A17: salarié 16 | B17: 10 | C17: essence
A18: salarié 17 | B18: 6 | C18: Essence
A19: salarié 18 | B19: 10 | C19: essence
A20: salarié 19 | B20: 9 | C20: diesel
A21: salarié 20 | B21: 4 | C21: Essence
A22: salarié 21 | B22: 6 | C22: Essence
A23: salarié 22 | B23: 3 | C23: électrique
A24: salarié 23 | B24: 6 | C24: Essence
A25: salarié 24 | B25: 8 | C25: diesel
A26: salarié 25 | B26: 3 | C26: Essence
A27: salarié 26 | B27: 4 | C27: Essence
A28: salarié 27 | B28: 5 | C28: électrique
A29: salarié 28 | B29: 10 | C29: essence
A30: salarié 29 | B30: 8 | C30: diesel
A31: salarié 30 | B31: 9 | C31: diesel

Sheet barèmes
A1: Voiture - Urssaf.fr
A2: Le barème fiscal des indemnités kilométriques permet l’évaluation des frais de déplacement relatifs à l’utilisation d’un véhicule par les salariés optant pour le régime des frais réels déductibles. Ce barème est diffusé par un arrêté du 15 février 2021.
B4: Kilométrage parcouru à titre professionnel
A5: Puissance fiscale | B5: Jusqu’à 5 000 km | C5: De 5 001 à 20 000 km | D5: Au-delà de 20 000 km | G5: cv | H5: <=5000 | I5: >5000 et <=20000 | J5: Colonne2 | K5: >20000
A6: 3 cv et moins | B6: d x 0,456 | C6: (d x 0,273) + 915 | D6: d x 0,318 | G6: 0 | H6: 0.456 | I6: 0.273 | J6: 915 | K6: 0.318
A7: 4 cv | B7: d x 0,523 | C7: (d x 0,294) + 1 147 | D7: d x 0,352 | G7: 4 | H7: 0.523 | I7: 0.294 | J7: 1147 | K7: 0.352
A8: 5 cv | B8: d x 0,548 | C8: (d x 0,308) + 1 200 | D8: d x 0,368 | G8: 5 | H8: 0.548 | I8: 0.308 | J8: 1200 | K8: 0.368
A9: 6 cv | B9: d x 0,574 | C9: (d x 0,323) + 1 256 | D9: d x 0,386 | G9: 6 | H9: 0.574 | I9: 0.323 | J9: 1256 | K9: 0.386
A10: 7 cv et plus | B10: d x 0,601 | C10: (d x 0,340) + 1 301 | D10: d x 0,405 | G10: 7 | H10: 0.601 | I10: 0.34 | J10: 1301 | K10: 0.405
A11: d = distance parcourue à titre professionnel en km | E11: cv: chevaux fiscaux
A12: Pour les véhicules électriques, le montant des frais de déplacement est majoré de 20 %.
